Cogmind - Beta 14 @@@ ROGUE MODE // 2024.11.21 @ 16:29:24 Player: skye Result: Destroyed by G-47 Trooper with Particle Gun Performance ------------- Evolutions (2) 1000 Regions Visited (5) 1000 Robots Destroyed (48) 240 Value Destroyed (1364) 1364 Prototype IDs (23) 460 Alien Tech Used (0) 0 Bonus (357) 357 TOTAL SCORE: 4421 Bonus ------- High Alert Combat Kills 57 Aligned with FarCom 300 Cogmind --------- Core Integrity 0/550 Matter 143/300 Energy 160/160 System Corruption 0% Temperature Cool (27) Movement Treading (240) Ox1 Location -8/Materials Parts ------- > --- POWER (2) -------- Light Nuclear Core > --- PROPULSION (4) --- Light Treads > --- UTILITY (3) ------ Improved Heat Sink Large Storage Unit Advanced Targeting Computer > --- WEAPON (2) ------- Assault Rifle > --- INVENTORY (15) --- Ion Engine Heat Sink Improved Terrain Scanner Cloak of Protection Insulated Plating Hacking Suite Hacking Suite Assault Rifle Heavy Assault Rifle Grenade Launcher Rocket Launcher Improved Datajack Peak State ------------ > --- POWER ------------ Light Ion Engine Light Nuclear Core > --- PROPULSION ------- Medium Treads Medium Treads Medium Treads Medium Treads > --- UTILITY ---------- Large Storage Unit Light Armor Plating > --- WEAPON ----------- Missile Launcher Chainsword > --- INVENTORY -------- Ion Engine Light Treads Wheel Heat Sink Improved Terrain Scanner Advanced Targeting Computer Cloak of Protection Hacking Suite Assault Rifle Assault Rifle Heavy Assault Rifle Grenade Launcher Rocket Launcher Improved Datajack [Rating: 32] Favorites ----------- Power Light Nuclear Core Engine Light Ion Engine Power Core Light Nuclear Core Propulsion Light Treads Treads Light Treads Leg Aluminum Leg Wheel Wheel Utility Large Storage Unit Device Improved Heat Sink Storage Large Storage Unit Processor Advanced Targeting Computer Protection Light Armor Plating Weapon Assault Rifle Ballistic Gun Assault Rifle Launcher Grenade Launcher Slashing Weapon Chainsword Build | -11 -10 -10 -10 -9 -8 ------- Run | Yrd Mat Min Exi Min Mat Slots Evolved 4 | . . . . . 4 Power 1 | . . . . . 1 Propulsion 2 | . . . . . 2 Utility 1 | . . . . . 1 Weapon . | . . . . . . Parts Attached 30 | 2 7 2 . 1 18 Power 6 | . 1 2 . . 3 Engine 4 | . 1 1 . . 2 Core 2 | . . 1 . . 1 Reactor . | . . . . . . Propulsion 10 | 2 . . . 1 7 Treads 9 | 2 . . . 1 6 Leg . | . . . . . . Wheel 1 | . . . . . 1 Hover . | . . . . . . Flight . | . . . . . . Utility 6 | . 3 . . . 3 Device 1 | . . . . . 1 Storage 1 | . 1 . . . . Processor 1 | . . . . . 1 Hackware . | . . . . . . Protection 3 | . 2 . . . 1 Artifact . | . . . . . . Weapon 8 | . 3 . . . 5 Energy Gun . | . . . . . . Energy Cannon . | . . . . . . Ballistic Gun 2 | . 1 . . . 1 Ballistic Cannon . | . . . . . . Launcher 4 | . 2 . . . 2 Special Weapon . | . . . . . . Impact Weapon . | . . . . . . Slashing Weapon 2 | . . . . . 2 Piercing Weapon . | . . . . . . Special Melee Weapon . | . . . . . . Unidentified Prototypes . | . . . . . . Parts Lost 13 | . . . . . 13 Power 3 | . . . . . 3 Propulsion 5 | . . . . . 5 Utility 2 | . . . . . 2 Weapon 3 | . . . . . 3 Highest Loss Streak 7 | . . . . . 7 To Critical Strikes . | . . . . . . Average Slot Usage (%) 91 | . 94 100 100 100 72 Engine 7 | . 14 9 . . 6 Core 6 | . . 4 14 14 7 Treads 26 | . 28 28 28 28 22 Storage 12 | . 14 14 14 14 9 Protection 11 | . 9 14 14 14 7 Ballistic Gun 11 | . 16 14 14 14 2 Launcher 11 | . 10 14 14 14 7 Slashing Weapon 1 | . . . . . 6 Peak Build Rating 32 | 6 8 10 11 11 32 Average Rating 11 | 6 7 8 10 11 19 On Entrance 8 | 6 6 8 10 11 11 Naked Turns . | . . . . . . Heaviest Build 40 | 12 33 33 33 33 40 Greatest Support 112 | 40 40 40 40 40 112 Greatest Overweight (x) 7 | . . . . . 7 Average Overweight (x) . | . . . . . . Largest Inventory Capacity 15 | 8 15 15 15 15 15 Average Capacity 14 | 8 11 15 15 15 15 Most Carried 15 | 6 15 15 15 15 15 Average Carried 13 | 6 10 15 15 14 14 Final Capacity 15 | 8 15 15 15 15 15 Final Carried 15 | 6 15 15 15 15 12 Class Distribution -------------------- 100% | Mutant Dominant Class ---------------- Mutant | -10/Materials Mutant | -10/Mines Mutant | -10/Exiles Mutant | -9/Mines Mutant | -8/Materials Resources | -11 -10 -10 -10 -9 -8 ----------- Run | Yrd Mat Min Exi Min Mat Matter Collected 891 | 209 203 211 . 56 212 Remotely . | . . . . . . Salvage Created 976 | . 282 269 . . 425 Parts 74 | . 22 19 . . 33 Haulers Intercepted 1 | . 1 . . . . Recyclers Shooed 1 | . . . . . 1 Parts Field Recycled . | . . . . . . Retrieved Matter . | . . . . . . Parts Self-Destructed . | . . . . . . Prevented . | . . . . . . Kills | -11 -10 -10 -10 -9 -8 ------- Run | Yrd Mat Min Exi Min Mat Combat Hostiles Destroyed 40 | . 9 12 . . 19 Melee 5 | . . . . . 5 Guns 5 | . 5 . . . . AOE 30 | . 4 12 . . 14 Classes Destroyed 7 | . 4 1 . . 2 Worker 3 | . . 1 . . 2 Builder 4 | . 1 . . . 3 Hauler 1 | . 1 . . . . Swarmer 13 | . 3 3 . . 7 Grunt 22 | . 6 9 . . 7 Sentry 3 | . . . . . 3 Hunter 2 | . . . . . 2 Best Kill Streak 11 | . 3 3 . . 11 Combat Bots Only 8 | . 3 3 . . 8 Max Kills in Single Turn 3 | . 3 2 . . 3 Gunslinging . | . . . . . . Exploded 3 | . 1 2 . . 3 Melee 1 | . . . . . 1 Uniques/NPCs Destroyed . | . . . . . . Combat | -11 -10 -10 -10 -9 -8 -------- Run | Yrd Mat Min Exi Min Mat Hostile Shots Fired 283 | . 47 31 . . 205 Missed 90 | . 16 10 . . 64 Damage Taken 2625 | . 316 298 . . 2011 Core 663 | . 67 38 . . 558 Absorbed by Shields . | . . . . . . Redirected to Shielding 14 | . 14 . . . . Regen/Repaired (Parts) 40 | . 40 . . . . Core Remaining (%) 79 | 100 . . . 58 . Volleys Fired 88 | . 41 23 . . 24 Largest 1 | . 1 1 . . 1 Hottest 36 | . 30 30 . . 36 Shots Fired 88 | . 41 23 . . 24 Gun 40 | . 32 4 . . 4 Cannon . | . . . . . . Launcher 48 | . 9 19 . . 20 Special . | . . . . . . Kinetic 40 | . 32 4 . . 4 Thermal . | . . . . . . Explosive 48 | . 9 19 . . 20 Electromagnetic . | . . . . . . Robot Hit Streak 19 | . 6 11 . . 19 Robot Miss Streak 4 | . 4 3 . . 1 Penetration Max . | . . . . . . Secondary Targets . | . . . . . . Shots Hit Robots 69 | . 22 17 . . 30 Core Hits 81 | . 17 23 . . 41 Critical Kills . | . . . . . . Critical Parts Destroyed . | . . . . . . Critical Strikes 3 | . . . . . 3 Sever 3 | . . . . . 3 Melee Attacks 15 | . . . . . 15 Impact . | . . . . . . Slashing 15 | . . . . . 15 Piercing . | . . . . . . Sneak Attacks . | . . . . . . Combat Hostiles . | . . . . . . Follow-up Attacks . | . . . . . . Damage Inflicted 3446 | . 708 960 . . 1778 Guns 300 | . 228 25 . . 47 Cannons . | . . . . . . Explosions 2742 | . 480 935 . . 1327 Melee 396 | . . . . . 396 Ramming 8 | . . . . . 8 Kinetic 300 | . 228 25 . . 47 Thermal . | . . . . . . Explosive 2742 | . 480 935 . . 1327 Electromagnetic . | . . . . . . Impact . | . . . . . . Slashing 396 | . . . . . 396 Piercing . | . . . . . . Highest Corruption 2 | . 2 2 2 2 . Average Corruption 2 | . 2 2 2 2 . Corruption Purged . | . . . . . . Corruption Blocked . | . . . . . . Effects 18 | . . 13 4 1 . Message Errors 9 | . . 6 2 1 . Matter Fused 2 | . . 2 . . . Energy Discharges 4 | . . 3 1 . . Data Loss (minor) 3 | . . 2 1 . . Overload Shots . | . . . . . . Overflow Damage 53 | . . . . . 53 Projectiles . | . . . . . . Explosions 53 | . . . . . 53 Melee . | . . . . . . Knockbacks . | . . . . . . Impact . | . . . . . . Kinetic . | . . . . . . Secondary . | . . . . . . Self-Inflicted Damage 163 | . . 68 . . 95 Shots 6 | . . 3 . . 3 Rammed 7 | . . . . . 7 Targets Rammed 8 | . . . . . 8 Kicked . | . . . . . . Crushed 1 | . . . . . 1 Highest Temperature 30 | . 4 12 . . 30 Average Temperature 7 | . 2 6 . . 9 Received Heat Transfer 1032 | . 123 90 . . 819 Siege Activations . | . . . . . . Robots Corrupted . | . . . . . . Combat Hostiles . | . . . . . . Parts Fried . | . . . . . . Impact Corruptions . | . . . . . . Robots Melted . | . . . . . . Combat Hostiles . | . . . . . . Parts Melted . | . . . . . . Heat Transferred . | . . . . . . Parts Sabotaged . | . . . . . . Parts Stolen . | . . . . . . Parts Stripped . | . . . . . . Power Chain Reactions . | . . . . . . Alert | -11 -10 -10 -10 -9 -8 ------- Run | Yrd Mat Min Exi Min Mat Peak Influence 473 | . 185 302 . . 473 Initial 58 | . . 58 . . . Average 125 | . 79 185 . . 148 Maximum Alert Level 2 | . . 1 . . 2 Low Security (%) 75 | 100 100 53 . 100 69 Level 1 17 | . . 46 . . 8 Level 2 6 | . . . . . 21 Level 3 . | . . . . . . Level 4 . | . . . . . . Level 5 . | . . . . . . High Security . | . . . . . . Max Security . | . . . . . . Squads Dispatched 5 | . 1 . . . 4 Investigation 1 | . 1 . . . . Extermination . | . . . . . . Reinforcement 4 | . . . . . 4 Assault . | . . . . . . Garrison . | . . . . . . Intercept . | . . . . . . Searches Triggered . | . . . . . . Construction Impeded 2 | . . . . . 2 Haulers Reinforced . | . . . . . . Active Scanning Responses . | . . . . . . Cargo Convoy Interrupts . | . . . . . . Stealth | -11 -10 -10 -10 -9 -8 --------- Run | Yrd Mat Min Exi Min Mat Distress Signals 3 | . 2 . . . 1 Communications Jammed . | . . . . . . Distress Signals . | . . . . . . Times Spotted 52 | . 15 12 . . 25 Peak Tracking Total 7 | . 4 3 . . 7 Tactical Retreats . | . . . . . . Traps | -11 -10 -10 -10 -9 -8 ------- Run | Yrd Mat Min Exi Min Mat Traps Triggered 2 | . 2 . . . . Indirectly . | . . . . . . Trap Hack Attempts . | . . . . . . Triggered . | . . . . . . Disarmed . | . . . . . . Reprogrammed . | . . . . . . Reused . | . . . . . . Traps Extracted . | . . . . . . Installed . | . . . . . . Triggered . | . . . . . . Machines | -11 -10 -10 -10 -9 -8 ---------- Run | Yrd Mat Min Exi Min Mat Machines Disabled 6 | . 1 1 . . 4 Max in Single Turn 1 | . 1 1 . . 1 Machines Repaired . | . . . . . . Machines Dismantled . | . . . . . . Machines Sabotaged . | . . . . . . Overloaded Fab Kills . | . . . . . . Hacking | -11 -10 -10 -10 -9 -8 --------- Run | Yrd Mat Min Exi Min Mat Machines Accessed 8 | . 5 . 1 . 2 Terminals 5 | . 4 . . . 1 Fabricators . | . . . . . . Repair Stations 1 | . 1 . . . . Recycling Units 1 | . . . . . 1 Scanalyzers . | . . . . . . Garrison Access . | . . . . . . Total Hacks 13 | . 9 . 1 . 3 Successful 9 | . 7 . 1 . 1 Failed 4 | . 2 . . . 2 Catastrophic 1 | . . . . . 1 Database Lockouts . | . . . . . . Manual 9 | . 6 . 1 . 2 Terminals 9 | . 7 . . . 2 Fabricators . | . . . . . . Repair Stations 2 | . 2 . . . . Recycling Units 1 | . . . . . 1 Scanalyzers . | . . . . . . Garrison Access . | . . . . . . Terminal Hacks 2 | . 1 . 1 . . Dispatch Records 1 | . 1 . . . . Derelict Proto ID Bank 1 | . . . 1 . . Fabricator Hacks . | . . . . . . Repair Station Hacks 2 | . 2 . . . . Scan Component 1 | . 1 . . . . Repair 1 | . 1 . . . . Recycling Unit Hacks 1 | . . . . . 1 Report Inventory 1 | . . . . . 1 Scanalyzer . | . . . . . . Garrison Access Hacks . | . . . . . . Unauthorized Hacks 4 | . 4 . . . . Terminals 4 | . 4 . . . . Botnet 4 | . 4 . . . . Fabricators . | . . . . . . Repair Stations . | . . . . . . Recycling Units . | . . . . . . Scanalyzers . | . . . . . . Garrison Access . | . . . . . . Data Cores Recovered . | . . . . . . Used . | . . . . . . Hacking Detections 4 | . 3 . . . 1 Full Trace Events . | . . . . . . Feedback Events . | . . . . . . Feedback Blocked . | . . . . . . Robot Schematics Acquired . | . . . . . . Robots Built . | . . . . . . Authchips . | . . . . . . Time . | . . . . . . Total Robot Build Rating . | . . . . . . Part Schematics Acquired . | . . . . . . Parts Built . | . . . . . . Authchips . | . . . . . . Time . | . . . . . . Total Part Build Rating . | . . . . . . Parts Repaired 1 | . 1 . . . . Time 26 | . 26 . . . . Parts Recycled . | . . . . . . Recycled Matter . | . . . . . . Retrieved Matter . | . . . . . . Retrieved Components . | . . . . . . Parts Scanalyzed . | . . . . . . Part Schematics Acquired . | . . . . . . Parts Damaged . | . . . . . . Bothacking | -11 -10 -10 -10 -9 -8 ------------ Run | Yrd Mat Min Exi Min Mat Used RIF Installer . | . . . . . . Robots Hacked . | . . . . . . Non-combat . | . . . . . . Combat . | . . . . . . Robot Hacks Applied . | . . . . . . Relay Couplers Released . | . . . . . . Fabnet Peak Effective % . | . . . . . . Robots Rewired . | . . . . . . Allies Hacked . | . . . . . . Hacks Repelled . | . . . . . . Allies | -11 -10 -10 -10 -9 -8 -------- Run | Yrd Mat Min Exi Min Mat Total Allies 1 | . . 1 . . . Largest Group 1 | . . 1 . . . Highest-Rated Group 31 | . . 31 . . . Highest-Rated Ally 31 | . . 31 . . . Total Orders . | . . . . . . Ally Attacks . | . . . . . . Total Damage . | . . . . . . Kills . | . . . . . . Allies Corrupted . | . . . . . . Allies Melted . | . . . . . . Intel | -11 -10 -10 -10 -9 -8 ------- Run | Yrd Mat Min Exi Min Mat Robot Analysis Total . | . . . . . . Derelict Logs Recovered 3 | . . 2 . 1 . Drone Launches . | . . . . . . Drone Recoveries . | . . . . . . Exploration | -11 -10 -10 -10 -9 -8 ------------- Run | Yrd Mat Min Exi Min Mat Turns Passed 2957 | 15 655 834 362 302 789 Spaces Moved 1599 | 9 327 475 226 169 393 Core 5 | . . . . . 5 Treads 1582 | 5 327 475 226 169 380 Legs 4 | 4 . . . . . Wheels 8 | . . . . . 8 Hover . | . . . . . . Flight . | . . . . . . Fastest Speed 110 | 120 160 160 160 160 110 Average Speed 161 | 142 160 160 160 160 165 Slowest Speed 400 | 160 160 160 160 160 400 Overloaded Moves . | . . . . . . Propulsion Burnouts . | . . . . . . Robots Hopped . | . . . . . . Cave-ins Triggered . | . . . . . . Exploration Rate (%) 49 | 3 51 92 65 50 37 Regions Visited 5 Branch Regions 3 Pre-discovered Areas 2 | . . 1 . 1 . Known Exits Taken . | . . . . . . Unknown Exits Taken 5 | 1 1 1 1 1 . Scrap Searched 2 | . . 1 . 1 . Spaces Dug 9 | . . . . . 9 Terrain Destroyed 298 | . 55 159 . . 84 Melee . | . . . . . . Projectile . | . . . . . . AOE 298 | . 55 159 . . 84 Terrain Rammed . | . . . . . . Walls Destroyed . | . . . . . . Machines Disabled . | . . . . . . Actions | -11 -10 -10 -10 -9 -8 --------- Run | Yrd Mat Min Exi Min Mat Total 1868 | 10 423 528 227 202 478 Wait 70 | . 16 21 . 28 5 Move 1594 | 8 326 474 225 168 393 Hop . | . . . . . . Pick Up 31 | . 19 2 1 2 7 Fast Attach 10 | . 3 . . . 7 Attach 6 | . . . . . 6 Detach . | . . . . . . Swap 14 | 2 4 2 . 1 5 Drop 29 | . 14 3 1 3 8 Fire 88 | . 41 23 . . 24 Melee 15 | . . . . . 15 Ram . | . . . . . . Kick . | . . . . . . Crush 8 | . . . . . 8 Escape Stasis . | . . . . . . Rewire 3 | . . 3 . . . Trap . | . . . . . . Miscellaneous . | . . . . . . Route ------- -11/Scrapyard -10/Materials (discovered 3 exits: *Mat / [*Min x2]) -10/Mines (discovered 3 exits: *Mat x2 / *Exi) -10/Exiles -9/Mines -8/Materials History --------- Turn | Location | Event 1 | -11/Scrapyard | Discovered new exit (range 3) 16 | -11/Scrapyard | Entered Materials 220 | -10/Materials | Discovered new exit (range 16) 271 | -10/Materials | Discovered new exit (range 6) 305 | -10/Materials | Build established: Mutant 458 | -10/Materials | Repaired Grenade Launcher 544 | -10/Materials | Discovered new exit (range 7) 671 | -10/Materials | Entered Mines 689 | -10/Mines | Met a Derelict bent on vengeance 720 | -10/Mines | Found a hidden stash of uninstalled traps 752 | -10/Mines | Identified exit to Materials 954 | -10/Mines | Received a Rocket Launcher from a helpful Derelict 1284 | -10/Mines | Learned location of Recycling (-7) 1303 | -10/Mines | Escorted by a lone wolf Derelict 1360 | -10/Mines | Discovered exit to Materials (range 6) 1497 | -10/Mines | Deemed a non-threat by the Exiles lab entrance 1498 | -10/Mines | Discovered new exit (range 5) 1505 | -10/Mines | Entered Exiles 1505 | -10/Exiles | Accompanied by 1 ally 1544 | -10/Exiles | Met 8R-AWN 1569 | -10/Exiles | Met EX-HEX 1625 | -10/Exiles | Met EX-BIN 1645 | -10/Exiles | Aligned with FarCom system 1646 | -10/Exiles | Given EX-Vault access code 1686 | -10/Exiles | Opened EX-Vault 1696 | -10/Exiles | Found Cloak of Protection 1729 | -10/Exiles | Warned to stay clear of 0b10 Research branches 1753 | -10/Exiles | Exiles lab attacked by MAIN.C 1849 | -10/Exiles | Discovered new exit (range 14) 1867 | -10/Exiles | Left Exiles lab with Cloak of Protection 1867 | -10/Exiles | Entered Mines 1970 | -9/Mines | Learned location of Zion (-7) 1993 | -9/Mines | A weapon hastily lodged in a ceiling crevice suddenly fell to the ground 2150 | -9/Mines | Discovered new exit (range 7) 2169 | -9/Mines | Entered Materials 2169 | -8/Materials | Evolved 4 slots: Power x1, Propulsion x2, Utility x1 2779 | -8/Materials | Destroyed 8 combat bots 2787 | -8/Materials | Lost 3 parts (2p1u) 2835 | -8/Materials | Core integrity fell below 50% 2872 | -8/Materials | Lost 7 parts (1p5n1w) 2872 | -8/Materials | Core integrity fell below 20% 2958 | -8/Materials | Destroyed by G-47 Trooper with Particle Gun Last Messages --------------- U-05 Engineer lays Concrete. Crushed G-47 Trooper. G-47 Trooper destroyed. U-05 Engineer lays Concrete. The unstable cave ceiling collapses. U-05 Engineer lays Concrete. Slammed into U-05 Engineer. ALERT: Construction progress impeded, dispatching reinforcements to local area. Acquired 44 matter. U-05 Engineer builds a Wall. R-06 Scavenger collects Aluminum Leg. R-06 Scavenger collects Particle Gun. R-06 Scavenger collects Imp. Heat Sink. Acquired Insulated Plating. Acquired Hacking Suite. U-05 Engineer builds a Wall. Slammed into G-47 Trooper. U-05 Engineer lays Concrete. Critical hit (Burn: +37). Map ----- +----------------------------------------------------+ | ?????????????????? ??????????????? | | ?????????????????? T ???????????????? | | ?????????????????? ! #???????????????? | | ??????????????????# #???????????????? | | ??????????????????# #???????????????? | | ??????????????????# % ###?????????????? | | ??????????????????+ """"" ??????????????? | | ??????????????????# "" ????????????????? | | ??????????????????# "" ??????????????????? | | ??????????????????# ####????????????????? | | ??????????????????# #????????????????? | | ??????????????????# # #########?????????? | | ???????############ # """T""" #?????????? | | ????? % # #?????????? | | ????? [[= # #?????????? | | ????? =[ [ + #?????????? | | ????????########### # "" """ #?????????? | | ??????????????????###### # "" #?????????? | | ?????????????????????## # " """ #?????????? | | ????????????????????#### # #?????????? | | ????????????????????# ## ###########?????????? | | ????????????##########%#= ############????????? | | ????????????# =[# ## !#????????? | | ????????????# ! ## ## #????????? | | #???????????# " #[ u#! #????????? | | #???????????# "" #@g # ! #????????? | | #########???# " " """ + g u #????????? | | ## //==#???# "R" # # #????????? | | ## /==#???# """ #m # #????????? | | ## #???# ## ## #????????? | | # ############## # # ##########????????? | | #??# # # #?????????????????? | | #??### ###?????????????????? | | ! #????# #???????????????????? | | ###+########## #???## ##??????????????????? | | ## #???# #???## #??????????????????? | | ## """ #???# #???## = #????###########???? | | ## """ #???# ######[* ###### #???? | | ## """ !#???# ## !#???? | | ## #???# [ ## """ """ #???? | | ## """ #???# ## """ """ #???? | | ## """ #???########## # ## """ """ #???? | | ## """ #????????????###### ## #???? | | ## #?????????????????# ## ! #???? | | ###########????????????????## ## #???? | | ##???#########?????????????# [###+########### | | ###### #?????????????# # | | # """ #?????????????+ T # | | % #### # """[ #?????????????# # | | +##### # """ #?????????????# ##########+#### | +----------------------------------------------------+ Best States ------------- Heat Dissipation 45 Energy Generation 19 Energy Capacity 250 Matter Stores 300 Matter Capacity 300 Sight Range 16 Terrain Scan Density 10 Armor Coverage 300 Core Shielding 20 Evasion (%) 40 Targeting Accuracy 8 Recoil Reduction 4 Item Schematics ----------------- None Robot Schematics ------------------ None Fabricated ------------ Nothing Alien Tech Used ----------------- None Achievements -------------- None Challenges ------------ None Game ------ Seed TransportSupersonicFlail Manual? 0 Play Time 00:23:24 Cumulative 52.2 hours Start 2024.11.21 @ 16:04:01 End 2024.11.21 @ 16:29:24 Sessions 1 Manual Loads 0 Difficulty Rogue Special Mode None Game No. 67 Rogue 23 Adventurer 44 Explorer 0 Win Type - Total 0 Types 0/0/0/0/0/0/0/0/0 Lore% 18 Gallery% 43 Achievement% 30 Wizard Run 0 Options --------- Layout 1 ASCII 0 Keyboard 1 Movement Vi Keybinds 0 Fullscreen 1 Font 24/Terminus Map View 50x40 Zoom Use 0% Tactical HUD 0 Map Filters NONE Filters NONE Steam 1 RUN: ed21227e-0408-4211-9ce0-3131b5fc97c9